bitfinex/quotes_SOLUSD_20220216
["timestamp","ask_amount","ask_price","bid_price","bid_amount"]
[1645020125607,15.0974,99.39,99.342,35.18262001]
[1645020126510,46.18647258,99.399,99.342,35.18262001]
[1645020127314,46.18647258,99.399,99.303,23.6698]
[1645020127712,46.18647258,99.399,99.313,0.25]
[1645020128315,15.0973,99.39,99.314,0.25]
[1645020128714,15.0973,99.39,99.315,0.25]
[1645020128915,15.0973,99.39,99.314,0.25]
[1645020128916,15.0973,99.39,99.305,36.83165339]
[1645020129913,15.0973,99.39,99.32,15.0972]
[1645020130120,46.18647258,99.399,99.321,37.45040829]
[1645020130317,15.3464,99.4,99.321,37.45040829]
[1645020130517,0.25,99.4,99.321,37.45040829]
[1645020130720,0.25,99.4,99.331,0.25]
[1645020131017,0.25,99.4,99.34,15.0937]
[1645020131415,0.25,99.4,99.341,44.28403896]
[1645020132220,0.25,99.4,99.341,39.25303896]
[1645020132544,1.34598788,99.431,99.35,15.0929]
[1645020132845,1.34598788,99.441,99.342,2.28102474]
[1645020133041,1.34598788,99.444,99.351,0.25]
[1645020133247,1.34598788,99.453,99.351,2.53102474]
[1645020133443,38.7639274,99.452,99.357,0.25]
[1645020133643,38.7639274,99.452,99.36,110.2]
[1645020133843,38.7639274,99.452,99.38,15.0869]
[1645020134047,38.7639274,99.452,99.381,46.45028107]
[1645020134246,1.34598788,99.451,99.381,46.45028107]
[1645020134645,1.34598788,99.45,99.381,46.45028107]
[1645020134847,0.25,99.441,99.381,46.45028107]
[1645020135556,0.25,99.441,99.37,15.0889]
[1645020135749,0.25,99.441,99.358,2.27065225]
[1645020136048,0.25,99.441,99.35,59.7791]
[1645020136850,15.0902,99.44,99.36,15.0905]
[1645020137851,0.25,99.441,99.37,15.3382]
[1645020138050,0.25,99.441,99.37,15.0882]
[1645020139151,0.25,99.441,99.371,5.029]
[1645020139351,0.25,99.441,99.37,15.0882]
[1645020140155,15.0904,99.44,99.36,15.3404]
[1645020140352,0.25,99.441,99.36,0.25]
[1645020140754,0.25,99.441,99.35,109.00340254]
[1645020140956,1.34598788,99.46,99.35,109.00340254]
[1645020141157,1.34598788,99.46,99.351,61.89065225]
[1645020141354,1.34598788,99.465,99.37,15.0893]
[1645020141556,1.34598788,99.466,99.37,11.87]
[1645020141756,1.34598788,99.467,99.37,11.87]
[1645020142355,6.0,99.457,99.38,0.25]
[1645020142659,15.0885,99.46,99.38,0.25]
[1645020142856,0.25,99.447,99.38,0.25]
[1645020143255,24.41058788,99.474,99.38,0.25]
[1645020143457,23.0646,99.474,99.381,59.62]
[1645020143654,2.44017527,99.493,99.38,12.12]
[1645020143655,1.34598788,99.483,99.387,59.62]
[1645020143858,15.0828,99.49,99.397,0.25]
[1645020143859,1.34598788,99.484,99.397,0.25]
[1645020144058,15.0828,99.49,99.397,0.25]
[1645020144256,15.0828,99.49,99.403,0.25]
[1645020144854,15.0828,99.49,99.41,15.0824]
[1645020146757,3.78616315,99.504,99.41,15.0824]
[1645020146959,2.44017527,99.504,99.41,15.0824]
[1645020147159,1.34598788,99.511,99.41,15.0824]
[1645020147160,1.34598788,99.511,99.411,61.89065225]
[1645020147358,1.34598788,99.512,99.421,0.25]
[1645020147563,46.9374,99.531,99.421,0.25]
[1645020147564,1.34598788,99.519,99.421,0.25]
[1645020147761,1.34598788,99.523,99.421,0.25]
[1645020147962,1.34598788,99.524,99.423,0.25]
[1645020148460,1.34598788,99.524,99.432,0.25]
[1645020148859,1.34598788,99.525,99.432,0.25]
[1645020149261,1.34598788,99.524,99.432,0.25]
[1645020149761,1.34598788,99.528,99.432,0.25]
[1645020150062,15.0775,99.53,99.432,0.25]
[1645020150365,15.0775,99.53,99.44,0.25]
[1645020150764,6.0,99.52,99.44,0.25]
[1645020151163,15.0775,99.53,99.43,74.6988]
[1645020151367,6.25,99.52,99.43,74.6988]
[1645020151566,6.25,99.52,99.43,15.0788]
[1645020151762,0.25,99.52,99.43,15.0788]
[1645020152561,15.0775,99.53,99.431,98.08]
[1645020152761,46.9374,99.531,99.44,15.3262]
[1645020152968,46.9374,99.531,99.441,0.25]
[1645020154164,46.9374,99.531,99.442,5.025]
[1645020154364,46.9374,99.531,99.452,0.25]
[1645020154964,46.9374,99.531,99.45,26.945]
[1645020155163,46.9374,99.531,99.427,22.81]
[1645020155365,46.9374,99.531,99.437,0.25]
[1645020155764,46.9374,99.531,99.44,0.25]
[1645020155964,15.0787,99.53,99.44,0.25]
[1645020156564,15.0787,99.53,99.43,26.947]
[1645020156765,46.9374,99.531,99.43,26.947]
[1645020156965,46.9374,99.531,99.441,2.27065225]
[1645020157166,0.25,99.521,99.45,26.9454]
[1645020158167,0.25,99.521,99.45,86.5654]
[1645020158369,0.25,99.521,99.46,15.3238]
[1645020158864,0.25,99.521,99.462,0.25]
[1645020159273,0.25,99.521,99.47,0.25]
[1645020159572,1.34598788,99.563,99.473,98.08]
[1645020159777,1.34598788,99.563,99.47,26.9421]
[1645020159778,6.0,99.553,99.483,0.25]
[1645020161672,6.0,99.553,99.48,11.87]
[1645020161872,6.0,99.553,99.46,11.87]
[1645020162072,6.0,99.553,99.462,0.25]
[1645020162271,0.25,99.543,99.47,0.25]
[1645020162875,0.25,99.543,99.47,15.3223]
[1645020163975,0.25,99.543,99.47,27.1923]
[1645020164177,0.25,99.543,99.472,59.62]
[1645020164377,0.25,99.543,99.482,0.25]
[1645020164581,6.0,99.553,99.482,0.25]
[1645020164781,6.0,99.553,99.49,0.25]
[1645020166902,6.0,99.553,99.491,0.25]
[1645020167104,5.5,99.553,99.49,0.25]
[1645020167503,5.5,99.553,99.49,15.3197]
[1645020168202,5.5,99.553,99.49,74.9397]
[1645020168404,5.5,99.553,99.492,59.62]
[1645020168605,5.5,99.553,99.5,15.068]
[1645020169004,5.5,99.553,99.49,0.25]
[1645020169206,4.5,99.553,99.503,0.25]
[1645020169407,4.5,99.553,99.491,0.25]
[1645020170007,48.9489,99.579,99.491,0.25]
[1645020170209,0.25,99.569,99.491,0.25]
[1645020170409,0.25,99.569,99.47,11.87]
[1645020170807,2.44017527,99.568,99.47,11.87]
[1645020171307,6.0,99.558,99.47,11.87]
[1645020171508,24.0727,99.557,99.473,59.62]
[1645020171707,24.0727,99.557,99.48,157.95]
[1645020172210,24.0727,99.557,99.48,169.82]
[1645020172507,24.0727,99.557,99.484,0.25]
[1645020172707,24.0727,99.557,99.49,0.25]
[1645020172908,24.0727,99.557,99.485,2.27065225]
[1645020173108,24.0727,99.557,99.481,98.08]
[1645020173508,24.0412,99.579,99.491,59.62]
[1645020173912,21.5412,99.579,99.492,98.08]
[1645020174122,21.5412,99.579,99.499,59.62]
[1645020174320,21.5412,99.579,99.509,0.25]
[1645020174818,21.5412,99.579,99.51,15.3158]
[1645020175625,23.157,99.599,99.513,98.08]
[1645020175924,23.157,99.599,99.51,15.3158]
[1645020175925,23.157,99.599,99.531,98.08]
[1645020176326,23.157,99.599,99.541,0.25]
[1645020177639,23.157,99.599,99.541,15.3222]
[1645020177836,24.8562,99.617,99.55,0.25]
[1645020178038,24.8562,99.617,99.55,74.9309]
[1645020178339,24.8562,99.617,99.552,0.25]
[1645020179341,24.8562,99.617,99.56,15.3091]
[1645020179540,24.8562,99.617,99.561,98.08]
[1645020179740,0.16751064,99.624,99.561,98.08]
[1645020179941,0.16751064,99.624,99.566,59.62]
[1645020180142,0.00751064,99.624,99.581,157.7]
[1645020180643,0.00751064,99.624,99.56,0.25]
[1645020180644,0.00751064,99.624,99.514,9.83730642]
[1645020180943,2.44017527,99.623,99.56,11.87]
[1645020181243,0.00751064,99.624,99.54,11.87]
[1645020181443,0.00751064,99.624,99.54,26.9321]
[1645020182142,0.00751064,99.624,99.54,86.5521]
[1645020182545,0.00751064,99.624,99.562,59.62]
[1645020182745,0.00751064,99.624,99.568,59.62]
[1645020182942,0.00751064,99.624,99.571,0.25]
[1645020183143,0.00751064,99.624,99.578,0.25]
[1645020183946,0.00751064,99.624,99.57,15.0575]
[1645020184344,0.00751064,99.624,99.57,30.0096]
[1645020184546,0.00751064,99.624,99.57,89.6296]
[1645020184747,0.00751064,99.624,99.572,59.62]
[1645020184950,0.00751064,99.624,99.58,15.0548]
[1645020185171,0.00751064,99.624,99.58,74.6748]
[1645020185369,24.0584,99.668,99.58,15.0548]
[1645020185570,0.32751064,99.624,99.58,15.0548]
[1645020186770,0.32751064,99.624,99.58,26.9248]
[1645020186971,0.00751064,99.624,99.58,26.9248]
[1645020187975,0.00751064,99.624,99.587,157.7]
[1645020188173,0.00751064,99.624,99.591,59.62]
[1645020188372,0.00751064,99.624,99.601,0.25]
[1645020189077,0.00751064,99.624,99.599,59.62]
[1645020189280,0.00751064,99.624,99.609,0.25]
[1645020189778,0.00751064,99.624,99.59,74.6739]
[1645020189978,0.00751064,99.624,99.6,11.87]
[1645020190175,0.00751064,99.624,99.6,71.49]
[1645020190775,0.00751064,99.624,99.61,0.25]
[1645020192276,0.00751064,99.624,99.612,0.25]
[1645020192477,0.00525544,99.626,99.61,0.25]
[1645020192677,0.00525544,99.626,99.6,41.6094]
[1645020192878,0.00525544,99.626,99.61,0.25]
[1645020193880,0.00525544,99.626,99.614,0.25]
[1645020194387,0.00525544,99.626,99.618,59.87]
[1645020194581,0.00525544,99.626,99.618,0.25]
[1645020194783,0.00525544,99.626,99.62,0.25]
[1645020195783,0.00525544,99.626,99.625,0.25]
[1645020196887,0.00525544,99.626,99.625,109.51]
[1645020197082,0.00525544,99.626,99.625,207.59]
[1645020197283,0.00525544,99.626,99.625,109.51]
[1645020197887,0.00525544,99.626,99.625,124.4292]
[1645020198090,0.00525544,99.626,99.625,64.5592]
[1645020198289,0.0025546,99.661,99.626,117.0]
[1645020198489,0.0025546,99.661,99.63,11.87]
[1645020199990,0.0025546,99.661,99.63,26.9177]
[1645020200792,0.0025546,99.661,99.64,0.25]
[1645020201400,0.0025546,99.661,99.64,15.2962]
[1645020201598,0.0025546,99.661,99.64,27.1662]
[1645020201797,0.0025546,99.661,99.641,0.25]
[1645020201997,0.0025546,99.661,99.64,27.1662]
[1645020202196,0.0025546,99.661,99.64,86.7862]
[1645020202597,47.7634,99.745,99.651,98.08]
[1645020202800,0.76781404,99.712,99.661,0.25]
[1645020203198,0.76781404,99.712,99.65,71.49]
[1645020203808,0.76781404,99.712,99.66,15.043]
[1645020204012,0.00781404,99.712,99.66,86.533]
[1645020204621,0.00781404,99.712,99.67,0.25]
[1645020204816,0.00781404,99.712,99.673,157.95]
[1645020205017,0.00781404,99.712,99.679,157.7]
[1645020205217,0.00781404,99.712,99.687,98.08]
[1645020205417,0.00781404,99.712,99.697,0.25]
[1645020205817,0.00781404,99.712,99.701,0.25]
[1645020206017,0.00781404,99.712,99.702,0.39660618]
[1645020206221,0.00216668,99.735,99.71,59.62]
[1645020206424,0.00216668,99.735,99.719,0.25]
[1645020206620,0.00216668,99.735,99.71,59.62]
[1645020206621,0.61647556,99.758,99.725,98.08]
[1645020206818,0.00433336,99.737,99.73,59.62]
[1645020207221,0.00433336,99.737,99.731,0.39649085]
[1645020207918,0.00645184,99.758,99.74,15.0321]
[1645020208419,0.00645184,99.758,99.75,0.25]
[1645020208618,0.00645184,99.758,99.751,0.39641135]
[1645020209317,0.00645184,99.758,99.751,0.64641135]
[1645020209921,0.00645184,99.758,99.751,98.72641135]
[1645020210118,0.00645184,99.758,99.752,59.62]
[1645020210318,0.00645184,99.758,99.754,59.62]
[1645020210520,0.00645184,99.758,99.753,98.08]
[1645020210521,0.00148494,99.792,99.773,98.08]
[1645020210718,0.00114048,99.797,99.781,157.7]
[1645020210919,0.00114048,99.797,99.791,0.25]
[1645020211118,0.00114048,99.797,99.792,0.42426521]
[1645020213124,0.00114048,99.797,99.795,157.7]
[1645020213325,0.00114048,99.797,99.792,0.42426521]
[1645020213934,1.2403788,99.797,99.79,11.87]
[1645020214127,0.00114048,99.797,99.791,0.42426946]
[1645020214527,0.00114048,99.797,99.695,46.0729]
[1645020214731,5.20114048,99.797,99.71,11.87]
[1645020214927,2.44017527,99.796,99.7,11.87]
[1645020215327,0.25,99.786,99.7,11.87]
[1645020215524,2.44017527,99.796,99.68,62.0025]
[1645020215728,0.00114048,99.796,99.71,15.0355]
[1645020215927,0.00114048,99.796,99.72,11.87]
[1645020216129,0.00114048,99.796,99.722,59.62]
[1645020216329,0.00114048,99.796,99.724,59.62]
[1645020216729,0.38114048,99.796,99.74,74.6529]
[1645020216928,0.38114048,99.796,99.75,71.74]
[1645020217428,0.00114048,99.796,99.755,98.08]
[1645020217731,0.00114048,99.796,99.76,0.25]
[1645020217929,0.00114048,99.796,99.77,15.0268]
[1645020218129,0.00114048,99.796,99.781,98.08]
[1645020218332,0.00334022,99.82,99.791,0.25]
[1645020218532,0.00334022,99.82,99.8,11.87]
[1645020219030,0.00944536,99.828,99.812,59.62]
[1645020219331,47.5778,99.905,99.822,0.25]
[1645020219332,0.5240913,99.864,99.822,0.25]
[1645020219532,0.08929482,99.864,99.822,0.25]
[1645020219730,0.08929482,99.864,99.83,0.25]
[1645020219935,0.08929482,99.864,99.84,11.87]
[1645020220132,0.00929482,99.864,99.84,11.87]
[1645020220333,0.00929482,99.864,99.85,0.25]
[1645020220531,0.60756108,99.912,99.852,157.7]
[1645020220532,0.00860916,99.876,99.852,157.7]
[1645020220732,0.00860916,99.876,99.852,59.62]
[1645020220934,0.00860916,99.876,99.862,0.25]
[1645020221137,0.00860916,99.876,99.87,71.49]
[1645020221337,0.00081408,99.877,99.871,142.05748052]
[1645020221734,0.00081408,99.877,99.871,0.05748052]
[1645020222134,0.00081408,99.877,99.872,2.26146096]
[1645020222563,0.00081408,99.877,99.871,0.05748052]
[1645020223335,0.00081408,99.877,99.85,11.87]
[1645020223539,0.00081408,99.877,99.86,0.25]
[1645020223736,0.00081408,99.877,99.85,11.87]
[1645020224136,0.00081408,99.877,99.86,0.25]
[1645020224337,0.00081408,99.877,99.85,11.87]
[1645020224741,0.00081408,99.877,99.86,15.0138]
[1645020225640,0.00081408,99.877,99.87,0.25]
[1645020225841,0.00081408,99.877,99.871,0.11083034]
[1645020226741,0.60756108,99.912,99.871,0.11083034]
[1645020227343,0.60756108,99.912,99.88,0.25]
[1645020228645,0.60756108,99.912,99.86,26.884]
[1645020228844,0.25,99.898,99.86,15.014]
[1645020230269,0.25,99.898,99.84,11.87]
[1645020230468,0.25,99.898,99.85,0.25]
[1645020230673,0.25,99.898,99.84,11.87]
[1645020230873,0.25,99.898,99.817,17.23703986]
[1645020230874,0.25,99.898,99.81,52.32026096]
[1645020231368,0.25,99.898,99.82,71.49]
[1645020231570,0.25,99.898,99.822,2.26146096]
[1645020231768,0.60756108,99.912,99.822,2.26146096]
[1645020231971,0.60756108,99.912,99.83,15.0177]
[1645020232269,0.60756108,99.912,99.83,26.8877]
[1645020233273,0.25,99.898,99.83,26.8877]
[1645020234171,0.25,99.898,99.81,15.0202]
[1645020234172,7.67,99.898,99.81,15.0202]
[1645020234373,13.67,99.898,99.79,11.87]
[1645020234571,98.08,99.897,99.79,11.87]
[1645020234773,98.9699,99.897,99.79,11.87]
[1645020234972,101.41007527,99.897,99.79,11.87]
[1645020235273,2.44017527,99.896,99.79,11.87]
[1645020235471,98.08,99.889,99.79,11.87]
[1645020236074,15.025,99.89,99.79,11.87]
[1645020236674,24.4576,99.897,99.8,15.023]
[1645020237273,24.4576,99.897,99.821,2.26146096]
[1645020237682,24.4576,99.897,99.831,0.25]
[1645020238380,0.25,99.887,99.84,0.25]
[1645020238579,24.4576,99.897,99.84,0.25]
[1645020239977,24.4576,99.897,99.84,15.2697]
[1645020240178,24.4576,99.897,99.84,15.0197]
[1645020240581,0.25,99.887,99.84,15.0197]
[1645020240983,24.4576,99.897,99.85,0.25]
[1645020241881,24.4576,99.897,99.85,15.2684]
[1645020242081,24.6355,99.91,99.85,15.0184]
[1645020242381,24.6355,99.91,99.86,0.25]
[1645020242582,0.60756108,99.912,99.86,0.25]
[1645020242782,0.60756108,99.912,99.87,15.0144]
[1645020243190,0.60756108,99.912,99.88,0.25]
[1645020243382,0.60756108,99.912,99.87,15.0144]
[1645020243383,0.25,99.898,99.87,15.0144]
[1645020243782,0.0060062,99.903,99.88,0.25]
[1645020243982,0.0060062,99.903,99.87,15.0144]
[1645020244183,0.0060062,99.903,99.89,15.0123]
[1645020245382,0.14734064,99.908,99.88,0.25]
[1645020245582,0.14734064,99.908,99.86,61.9123]
[1645020245583,0.14734064,99.908,99.86,50.0423]
[1645020245787,0.39734064,99.908,99.86,50.0423]
[1645020245983,0.14734064,99.908,99.86,50.0423]
[1645020246185,0.00734064,99.908,99.86,50.0423]
[1645020246382,0.00734064,99.908,99.86,109.6623]
[1645020246584,0.00734064,99.908,99.88,15.0142]
[1645020246785,0.00734064,99.908,99.89,0.25]
[1645020247383,0.00734064,99.908,99.883,0.25]
[1645020247983,0.00734064,99.908,99.89,15.0099]
[1645020248383,0.00734064,99.908,99.9,0.25]
[1645020248585,0.00734064,99.908,99.901,0.05709082]
[1645020248994,0.00734064,99.908,99.89,15.0099]
[1645020249394,0.1697414,99.912,99.88,15.0147]
[1645020249596,0.1697414,99.912,99.86,50.046]
[1645020249995,0.1697414,99.912,99.85,11.87]
[1645020250194,0.05483968,99.912,99.852,98.08]
[1645020250392,0.05483968,99.912,99.851,59.62]
[1645020250393,0.07134156,99.912,99.88,50.0312]
[1645020250794,0.07134156,99.912,99.89,0.25]
[1645020250993,0.10967936,99.912,99.89,0.25]
[1645020251194,0.23287968,99.912,99.89,0.25]
[1645020251594,0.23287968,99.912,99.89,15.2631]
[1645020251795,0.0022384,99.912,99.89,15.2631]
[1645020251994,0.00280128,99.912,99.89,15.2631]
[1645020255097,0.00280128,99.912,99.89,74.8831]
[1645020255695,0.00280128,99.912,99.9,15.0071]
[1645020255897,0.00280128,99.912,99.91,0.25]
[1645020256318,0.00280128,99.912,99.911,0.08458731]
[1645020257127,0.00921616,99.917,99.911,0.08458731]
[1645020258719,0.00921616,99.917,99.914,0.25]
[1645020259122,0.00843232,99.918,99.916,48.0]
[1645020261325,0.00881356,99.939,99.917,180.62]
[1645020261525,0.00881356,99.939,99.921,59.62]
[1645020261726,0.00881356,99.939,99.92,26.8728]
[1645020261727,0.00881356,99.939,99.927,0.25]
[1645020261926,0.53762712,99.944,99.938,86.62]
[1645020262125,0.00330262,99.961,99.938,86.62]
[1645020262326,0.0035695,99.991,99.951,59.62]
[1645020262726,0.0035695,99.991,99.95,11.87]
[1645020262727,15.7533682,100.02,99.981,157.7]
[1645020262926,10.7533682,100.02,99.991,59.87]
[1645020263328,10.7533682,100.02,100.0,0.29029161]
[1645020263528,0.0091682,100.02,100.01,95.0]
[1645020263727,0.0091682,100.02,100.0,0.54029161]
[1645020263728,96.80597754,100.03,100.0,0.5]
[1645020263928,0.00597754,100.03,100.0,0.5]
[1645020264134,0.1526957,100.03,100.0,0.5]
[1645020264532,0.1526957,100.03,100.01,0.10738551]
[1645020265635,0.1526957,100.03,100.01,15.10278551]
[1645020265835,0.1526957,100.03,100.02,0.25]
[1645020266533,0.1526957,100.03,100.01,6.10738551]
[1645020266735,0.1526957,100.03,100.01,0.10738551]
[1645020266935,1.66350778,100.02,100.0,0.25]
[1645020267434,0.1526957,100.03,100.01,1.13425466]
[1645020268034,0.1526957,100.03,100.01,16.12845466]
[1645020269338,0.25061582,100.03,100.01,16.12845466]
[1645020271144,0.25061582,100.03,100.01,1.13425466]
[1645020272643,0.25061582,100.03,100.01,16.12855466]
[1645020272842,0.25061582,100.03,100.01,1.13425466]
[1645020273841,0.25061582,100.03,100.01,16.12865466]
[1645020274041,0.25061582,100.03,100.02,0.25]
[1645020275067,0.25061582,100.03,100.02,14.9917]
[1645020276847,0.25061582,100.03,100.02,74.6117]
[1645020277045,0.29405214,100.03,100.02,92.7317]
[1645020277249,0.0087201,100.03,100.02,92.7317]
[1645020277446,0.00431074,100.03,100.02,92.78840706]
[1645020277847,0.00431074,100.03,100.02,33.16840706]
[1645020278848,0.00431074,100.03,100.02,32.91840706]
[1645020279051,0.00431074,100.03,100.02,26.91840706]
[1645020281352,0.00431074,100.03,100.02,27.16840706]
[1645020282255,0.00431074,100.03,100.02,33.16840706]
[1645020282458,0.34395102,100.06,100.02,27.16840706]
[1645020282882,0.34395102,100.06,100.02,26.91840706]
[1645020283480,0.34395102,100.06,100.02,11.92670706]
[1645020283681,0.34395102,100.06,100.0,0.25]
[1645020284682,0.34395102,100.06,100.0,15.2448]
[1645020284883,0.34395102,100.06,100.01,0.25]
[1645020285684,0.34395102,100.06,100.01,15.2434]
[1645020285884,0.34395102,100.06,100.01,21.2434]
[1645020286184,0.34395102,100.06,100.01,15.2434]
[1645020286585,0.34395102,100.06,100.01,14.9934]
[1645020287086,0.06409078,100.07,100.03,59.62]
[1645020287285,0.00409078,100.07,100.04,26.8567]
[1645020287588,0.00409078,100.07,100.04,97.99340653]
[1645020287785,0.00409078,100.07,100.05,0.25]
[1645020287985,0.00409078,100.07,100.04,64.6267]
[1645020288486,0.00409078,100.07,100.04,26.8567]
[1645020289290,0.00409078,100.07,100.05,0.25]
[1645020289488,0.00409078,100.07,100.05,15.2372]
[1645020290290,1.66350778,100.06,100.05,27.1072]
[1645020290490,0.00409078,100.07,100.05,27.1072]
[1645020291088,0.00409078,100.07,100.05,15.2372]
[1645020292591,0.12409078,100.07,100.05,15.2372]
[1645020294393,0.12409078,100.07,100.05,0.25]
[1645020294595,0.12409078,100.07,100.04,14.9897]
[1645020294796,1.66350778,100.06,100.02,17.87]
[1645020295196,1.66350778,100.06,100.03,0.25]
[1645020295395,1.66350778,100.06,100.03,15.241]
[1645020295596,0.12409078,100.07,100.03,15.241]
[1645020295794,0.12409078,100.07,100.03,27.111]
[1645020297394,0.12409078,100.07,100.03,101.596]
[1645020299296,0.12409078,100.07,100.03,26.861]
[1645020299496,0.12409078,100.07,100.03,14.991]
[1645020299697,0.12409078,100.07,100.02,20.9924]
[1645020299899,0.12409078,100.07,100.02,6.0]
[1645020300702,0.12409078,100.07,100.03,0.25]
[1645020301599,0.12409078,100.07,100.03,49.89]
[1645020302699,0.12409078,100.07,100.03,64.88]
[1645020302904,0.12409078,100.07,100.03,76.75]
[1645020303304,0.12409078,100.07,100.03,1077.080349]
[1645020303600,1.47007866,100.07,100.03,1000.330349]
[1645020304202,0.25,100.06,100.03,1000.330349]
[1645020306608,1.47007866,100.07,100.03,1000.330349]
[1645020307207,0.25,100.06,100.03,1000.330349]
[1645020307609,1.34598788,100.06,100.03,1000.330349]
[1645020309233,1.47007866,100.07,100.03,1000.330349]
[1645020311037,1.21826022,100.07,100.03,1000.330349]
[1645020311544,1.21826022,100.07,100.04,0.25]
[1645020311739,1.21826022,100.07,100.04,6.25]
[1645020311938,0.24818156,100.07,100.04,6.25]
[1645020312539,0.00818156,100.07,100.04,6.25]
[1645020313140,0.00818156,100.07,100.04,21.2376]
[1645020315539,0.83186852,100.08,100.04,21.2376]
[1645020317938,0.83186852,100.08,100.04,20.9876]
[1645020318738,1.08186852,100.08,100.04,6.0]
[1645020318938,0.83186852,100.08,100.04,6.0]
[1645020319343,0.00186852,100.08,100.04,6.0]
[1645020319540,0.00186852,100.08,100.05,71.74]
[1645020319840,0.00186852,100.08,100.06,49.64]
[1645020320040,0.00186852,100.08,100.06,61.51]
[1645020320240,0.00186852,100.08,100.07,0.25]
[1645020320440,0.00186852,100.08,100.07,15.2333]
[1645020320842,0.00186852,100.08,100.07,15.29466619]
[1645020321043,4.652e-05,100.09,100.08,112.0]
[1645020321244,0.4560062,100.1,100.09,58.0]
[1645020321444,0.4560062,100.1,100.08,14.9819]
[1645020322157,0.4560062,100.1,100.09,1.00999112]
[1645020322946,2.11951398,100.1,100.06,11.87]
[1645020323144,2.36951398,100.1,100.04,6.0]
[1645020323544,1.86951398,100.1,100.04,6.0]
[1645020323949,1.36951398,100.1,100.04,6.0]
[1645020324549,1.11951398,100.1,100.05,0.25]
[1645020325751,1.11951398,100.1,100.04,77.49]
[1645020325956,1.11951398,100.1,100.05,64.6253]
[1645020326152,1.11951398,100.1,100.05,49.64]
[1645020326352,1.11951398,100.1,100.04,17.87]
[1645020326553,1.11951398,100.1,100.04,6.0]
[1645020326753,0.25,100.09,100.04,6.0]
[1645020327355,0.66956056,100.11,100.04,6.0]
[1645020327555,0.91956056,100.11,100.04,6.0]
[1645020328356,15.90846056,100.11,100.04,6.0]
[1645020328558,15.40846056,100.11,100.04,6.0]
[1645020328758,15.93550112,100.11,100.04,6.0]
[1645020328960,6.0,100.1,100.03,1000.330349]
[1645020329157,29.4392,100.1,100.03,1000.330349]
[1645020329757,127.5192,100.1,100.03,1000.330349]
[1645020329957,29.4392,100.1,100.03,1000.330349]
[1645020330561,23.4392,100.1,100.03,1000.330349]
[1645020331561,6.0,100.09,100.03,1000.330349]
[1645020331763,20.9931,100.09,100.03,1000.330349]
[1645020331963,0.25,100.08,100.03,1000.330349]
[1645020332171,6.25,100.08,100.03,1000.330349]
[1645020332562,0.25,100.08,100.03,1000.330349]
[1645020332962,15.2446,100.08,100.03,1000.330349]
[1645020335272,98.08,100.07,100.03,1000.330349]
[1645020335473,113.076,100.07,100.03,1000.330349]
[1645020338280,98.08,100.05,100.03,1000.330349]
[1645020338474,16.11991398,100.04,100.03,1000.330349]
[1645020338882,114.19991398,100.04,100.03,940.18760946]
[1645020339075,114.19991398,100.04,100.03,840.16480946]
[1645020339275,114.19991398,100.04,100.03,542.72480946]
[1645020339475,114.19991398,100.04,100.03,335.58080946]
[1645020340076,114.19991398,100.04,100.03,320.99020946]
[1645020340476,16.11991398,100.04,100.03,320.99020946]
[1645020342078,114.19991398,100.04,100.03,320.99020946]
[1645020342480,16.11991398,100.04,100.03,320.99020946]
[1645020342704,114.19991398,100.04,100.03,320.99020946]
[1645020342904,16.11991398,100.04,100.03,320.99020946]
[1645020344709,114.19991398,100.04,100.03,320.99020946]
[1645020344909,16.11991398,100.04,100.03,320.99020946]
[1645020347110,16.36991398,100.04,100.03,320.99020946]